lending/lending_fUSD_20250121
["ID","MTS","AMOUNT","RATE_DAILY","PERIOD"]
[349840872,1737456689749,-773.11,0.00021699,2]
[349840873,1737456689758,-438.48,0.00021699,2]
[349840874,1737456689768,-773.11,0.00021699,2]
[349840875,1737456689778,-438.48,0.00021699,2]
[349840876,1737456689787,-773.11,0.00021699,2]
[349840877,1737456689796,-773.11,0.00021699,2]
[349840878,1737456689923,-438.48,0.00021699,2]
[349840879,1737456689932,-773.11,0.00021699,2]
[349840880,1737456689941,-438.48,0.00021699,2]
[349840881,1737456689951,-438.48,0.00021699,2]
[349840882,1737456689961,-773.11,0.00021699,2]
[349840883,1737456689970,-773.11,0.00021699,2]
[349840884,1737456689980,-438.48,0.00021699,2]
[349840885,1737456689990,-438.48,0.00021699,2]
[349840886,1737456689999,-773.11,0.00021699,2]
[349840887,1737456690008,-773.11,0.00021699,2]
[349840888,1737456690018,-773.11,0.00021699,2]
[349840889,1737456690027,-438.48,0.00021699,2]
[349840890,1737456690037,-1212.89,0.00021699,2]
[349840891,1737456690047,-438.48,0.00021699,2]
[349840892,1737456690056,-438.48,0.00021699,2]
[349840893,1737456690067,-438.48,0.00021699,2]
[349840894,1737456690076,-438.48,0.00021699,2]
[349840895,1737456690086,-438.48,0.00021699,2]
[349840896,1737456690095,-438.48,0.00021699,2]
[349840897,1737456690104,-438.48,0.00021699,2]
[349840898,1737456690113,-500.0,0.000217,2]
[349840899,1737456690123,-1000.0,0.000217,2]
[349840900,1737456690134,-300.0,0.00021709,2]
[349840901,1737456690143,-1000.0,0.00021711,2]
[349840902,1737456690154,-537.04,0.00021718,2]
[349840903,1737456690163,-4367.6125662,0.00021722,2]
[349840904,1737456690172,-786.68011415,0.00021725,2]
[349840905,1737456690182,-8208.99490734,0.00021726,2]
[349840906,1737456690191,-1140.0,0.00021728,2]
[349840907,1737456690200,-58990.02320017,0.00021732,2]
[349840908,1737456690210,-1000.0,0.00021737,2]
[349840909,1737456690219,-3194.47806535,0.00021738,2]
[349840910,1737456690228,-1663.34802938,0.00021739,2]
[349840911,1737456690237,-3711.46621509,0.0002174,2]
[349840912,1737456690247,-8208.99490734,0.0002174,2]
[349840913,1737456690256,-350.63019669,0.00021742,2]
[349840914,1737456690265,-58990.02320017,0.00021743,2]
[349840915,1737456690274,-350.63019669,0.00021743,2]
[349840916,1737456690283,-515.77423307,0.00021744,2]
[349840917,1737456690292,-72959.01286353,0.00021744,2]
[349840918,1737456690301,-8208.99490734,0.00021744,2]
[349840919,1737456690309,-3194.47806535,0.00021745,2]
[349840920,1737456690318,-3194.47806535,0.00021746,2]
[349840921,1737456690327,-732.27054866,0.00021746,2]
[349840922,1737456690336,-200.0,0.0002175,2]
[349840923,1737456690345,-2290.96809577,0.00021751,2]
[349840924,1737456690354,-1851.37913977,0.00021751,2]
[349840925,1737456690363,-2290.96809577,0.00021752,2]
[349840926,1737456690372,-515.77423307,0.00021753,2]
[349840927,1737456690381,-194.44444445,0.00021753,2]
[349840928,1737456690391,-3711.46621509,0.00021754,2]
[349840929,1737456690400,-515.77423307,0.00021757,2]
[349840930,1737456690410,-350.63019669,0.00021759,2]
[349840931,1737456690419,-3711.46621509,0.0002176,2]
[349840932,1737456690428,-150.0,0.00021761,2]
[349840933,1737456690438,-219.3239677,0.00021762,3]
[349840934,1737456690447,-515.77423307,0.00021763,2]
[349840935,1737456690456,-2290.96809577,0.00021763,2]
[349840936,1737456690465,-66832.52854304,0.00021763,2]
[349840937,1737456690474,-72959.01286353,0.00021764,2]
[349840938,1737456690483,-150.0,0.00021765,2]
[349840939,1737456690492,-66832.52854304,0.00021769,2]
[349840940,1737456690501,-732.27054866,0.00021769,2]
[349840941,1737456690510,-66832.52854304,0.00021772,2]
[349840942,1737456690519,-18778.86697771,0.00021773,2]
[349840943,1737456690529,-2290.96809577,0.0002178,2]
[349840944,1737456690538,-786.68011415,0.00021781,2]
[349840945,1737456690547,-1663.34802938,0.00021782,2]
[349840946,1737456690556,-18778.86697771,0.00021782,2]
[349840947,1737456690566,-58990.02320017,0.00021783,2]
[349840948,1737456690575,-200.0,0.00021784,2]
[349840949,1737456690584,-72959.01286353,0.00021785,2]
[349840950,1737456690593,-200.0,0.00021788,2]
[349840951,1737456690602,-72959.01286353,0.00021789,2]
[349840952,1737456690611,-732.27054866,0.00021793,2]
[349840953,1737456690621,-66832.52854304,0.00021795,2]
[349840954,1737456690631,-3711.46621509,0.00021797,2]
[349840955,1737456690643,-150.0,0.00021798,2]
[349840956,1737456690652,-281.9439939,0.000218,8]
[349840957,1737456690663,-264093.65918513,0.000218,2]
[349840958,1737456690675,-1000.0,0.000218,2]
[349840959,1737456690685,-816.469852,0.000218,2]
[349840960,1737456690695,-151.0,0.000218,2]
[349840961,1737456690704,-816.469852,0.000218,2]
[349840962,1737456690714,-257.068778,0.000218,2]
[349840963,1737456690724,-217.204996,0.000218,2]
[349840964,1737456690734,-217.204996,0.000218,2]
[349840965,1737456690744,-288.822405,0.000218,2]
[349840966,1737456690754,-288.822405,0.000218,2]
[349840967,1737456690764,-151.0,0.000218,2]
[349840968,1737456690774,-151.0,0.000218,2]
[349840969,1737456690783,-4122.99355992,0.00021801,2]
[349840970,1737456690792,-2930.44455828,0.00021801,2]
[349840971,1737456690802,-1851.37913977,0.00021801,2]
[349840972,1737456690811,-200.0,0.00021804,2]
[349840973,1737456690821,-732.27054866,0.00021805,2]
[349840974,1737456690833,-2930.44455828,0.00021807,2]
[349840975,1737456690843,-3711.46621509,0.00021811,2]
[349840976,1737456690852,-58990.02320017,0.00021812,2]
[349840977,1737456690863,-350.63019669,0.00021813,2]
[349840978,1737456690872,-3194.47806535,0.00021814,2]
[349840979,1737456690882,-500.0,0.00021815,2]
[349840980,1737456690893,-500.0,0.00021815,2]
[349840981,1737456690903,-500.0,0.00021815,2]
[349840982,1737456690912,-500.0,0.00021815,2]
[349840983,1737456690922,-500.0,0.00021815,2]
[349840984,1737456690931,-500.0,0.00021815,2]
[349840985,1737456690940,-500.0,0.00021815,2]
[349840986,1737456690950,-500.0,0.00021815,2]
[349840987,1737456690959,-248.07914957,0.00021815,2]
[349840988,1737456690968,-500.0,0.00021815,2]
[349840989,1737456690978,-66832.52854304,0.00021816,2]
[349840990,1737456690987,-13866.70985038,0.00021817,2]
[349840991,1737456690998,-18778.86697771,0.00021818,2]
[349840992,1737456691007,-2930.44455828,0.00021818,2]
[349840993,1737456691017,-1851.37913977,0.00021821,2]
[349840994,1737456691027,-1851.37913977,0.00021822,2]
[349840995,1737456691037,-8208.99490734,0.00021824,2]
[349840996,1737456691046,-786.68011415,0.00021825,2]
[349840997,1737456691056,-1663.34802938,0.00021825,2]
[349840998,1737456691066,-732.27054866,0.00021828,2]
[349840999,1737456691075,-4122.99355992,0.00021828,2]
[349841000,1737456691085,-515.77423307,0.00021829,2]
[349841001,1737456691094,-200.0,0.00021831,2]
[349841002,1737456691103,-2930.44455828,0.00021831,2]
[349841003,1737456691114,-279.14,0.00021836,2]
[349841004,1737456691123,-981.79,0.00021836,2]
[349841005,1737456691135,-298.01,0.00021836,2]
[349841006,1737456691145,-150.0,0.00021836,2]
[349841007,1737456691154,-437.71,0.00021836,2]
[349841008,1737456691163,-150.0,0.00021836,2]
[349841009,1737456691172,-152.48,0.00021836,2]
[349841010,1737456691181,-242.0,0.00021836,2]
[349841011,1737456691190,-150.0,0.00021836,2]
[349841012,1737456691200,-150.0,0.00021836,2]
[349841013,1737456691210,-437.71,0.00021836,2]
[349841014,1737456691219,-298.01,0.00021836,2]
[349841015,1737456691229,-150.0,0.00021836,2]
[349841016,1737456691238,-981.79,0.00021836,2]
[349841017,1737456691247,-150.0,0.00021836,2]
[349841018,1737456691257,-150.0,0.00021836,2]
[349841019,1737456691267,-150.0,0.00021836,2]
[349841020,1737456691277,-298.01,0.00021836,2]
[349841021,1737456691286,-150.0,0.00021836,2]
[349841022,1737456691296,-150.0,0.00021836,2]
[349841023,1737456691305,-150.0,0.00021836,2]
[349841024,1737456691315,-437.71,0.00021836,2]
[349841025,1737456691324,-981.79,0.00021836,2]
[349841026,1737456691333,-150.0,0.00021836,2]
[349841027,1737456691343,-150.0,0.00021836,2]
[349841028,1737456691352,-150.0,0.00021836,2]
[349841029,1737456691361,-437.71,0.00021836,2]
[349841030,1737456691371,-298.01,0.00021836,2]
[349841031,1737456691380,-1552.71,0.00021836,2]
[349841032,1737456691393,-150.0,0.00021836,2]
[349841033,1737456691402,-150.0,0.00021836,2]
[349841034,1737456691412,-150.0,0.00021836,2]
[349841035,1737456691421,-981.79,0.00021836,2]
[349841036,1737456691431,-150.0,0.00021836,2]
[349841037,1737456691441,-437.71,0.00021836,2]
[349841038,1737456691450,-150.0,0.00021836,2]
[349841039,1737456691460,-150.0,0.00021836,2]
[349841040,1737456691470,-150.0,0.00021836,2]
[349841041,1737456691480,-150.0,0.00021836,2]
[349841042,1737456691489,-150.0,0.00021836,2]
[349841043,1737456691499,-981.79,0.00021836,2]
[349841044,1737456691508,-150.0,0.00021836,2]
[349841045,1737456691517,-150.0,0.00021836,2]
[349841046,1737456691526,-437.71,0.00021836,2]
[349841047,1737456691536,-150.0,0.00021836,2]
[349841048,1737456691545,-150.0,0.00021836,2]
[349841049,1737456691555,-150.0,0.00021836,2]
[349841050,1737456691565,-150.0,0.00021836,2]
[349841051,1737456691575,-150.0,0.00021836,2]
[349841052,1737456691590,-150.0,0.00021836,2]
[349841053,1737456691600,-437.71,0.00021836,2]
[349841054,1737456691609,-150.0,0.00021836,2]
[349841055,1737456691620,-150.0,0.00021836,2]
[349841056,1737456691630,-981.79,0.00021836,2]
[349841057,1737456691644,-981.79,0.00021836,2]
[349841058,1737456691654,-150.0,0.00021836,2]
[349841059,1737456691664,-150.0,0.00021836,2]
[349841060,1737456691674,-150.0,0.00021836,2]
[349841061,1737456691683,-150.0,0.00021836,2]
[349841062,1737456691694,-437.71,0.00021836,2]
[349841063,1737456691704,-150.0,0.00021836,2]
[349841064,1737456691714,-150.0,0.00021836,2]
[349841065,1737456691723,-150.0,0.00021836,2]
[349841066,1737456691735,-150.0,0.00021836,2]
[349841067,1737456691745,-437.71,0.00021836,2]
[349841068,1737456691754,-981.79,0.00021836,2]
[349841069,1737456691764,-150.0,0.00021836,2]
[349841070,1737456691774,-150.0,0.00021836,2]
[349841071,1737456691783,-981.79,0.00021836,2]
[349841072,1737456691793,-437.71,0.00021836,2]
[349841073,1737456691803,-150.0,0.00021836,2]
[349841074,1737456691812,-981.79,0.00021836,2]
[349841075,1737456691824,-150.0,0.00021836,2]
[349841076,1737456691945,-437.71,0.00021836,2]
[349841077,1737456691954,-150.0,0.00021836,2]
[349841078,1737456691964,-437.71,0.00021836,2]
[349841079,1737456691974,-981.79,0.00021836,2]
[349841080,1737456691983,-150.0,0.00021836,2]
[349841081,1737456691993,-150.0,0.00021836,2]
[349841082,1737456692002,-437.71,0.00021836,2]
[349841083,1737456692012,-981.79,0.00021836,2]
[349841084,1737456692021,-150.0,0.00021836,2]
[349841085,1737456692031,-407.79,0.00021836,2]
[349841086,1737456692040,-150.0,0.00021836,2]
[349841087,1737456692049,-981.79,0.00021836,2]
[349841088,1737456692059,-150.0,0.00021836,2]
[349841089,1737456692068,-150.0,0.00021836,2]
[349841090,1737456692077,-981.79,0.00021836,2]
[349841091,1737456692087,-981.79,0.00021836,2]
[349841092,1737456692096,-150.0,0.00021836,2]
[349841093,1737456692106,-150.0,0.00021836,2]
[349841094,1737456692115,-150.0,0.00021836,2]
[349841095,1737456692124,-981.79,0.00021836,2]
[349841096,1737456692133,-716.36,0.00021836,2]
[349841097,1737456692144,-150.0,0.00021836,2]
[349841098,1737456692153,-150.0,0.00021836,2]
[349841099,1737456692162,-150.0,0.00021836,2]
[349841100,1737456692171,-2930.44455828,0.00021836,2]
[349841101,1737456692180,-18778.86697771,0.00021838,2]
[349841102,1737456692189,-1851.37913977,0.0002184,2]
[349841103,1737456692199,-8208.99490734,0.00021841,2]
[349841104,1737456692208,-1000.0,0.00021849,2]
[349841105,1737456692217,-1663.34802938,0.00021852,2]
[349841106,1737456692226,-18778.86697771,0.00021853,2]
[349841107,1737456692235,-537.04,0.00021855,2]
[349841108,1737456692245,-4122.99355992,0.00021855,2]
[349841109,1737456692254,-4122.99355992,0.00021857,2]
[349841110,1737456692263,-3194.47806535,0.00021858,2]
[349841111,1737456692272,-786.68011415,0.00021858,2]
[349841112,1737456692281,-72959.01286353,0.00021862,2]
[349841113,1737456692291,-786.68011415,0.00021863,2]
[349841114,1737456692300,-194.44444445,0.00021863,2]
[349841115,1737456692310,-350.63019669,0.00021865,2]
[349841116,1737456692319,-1663.34802938,0.00021869,2]
[349841117,1737456692328,-672.42039652,0.00021875,2]
[349841118,1737456692337,-2000.0,0.00021876,2]
[349841119,1737456692346,-200.0,0.00021876,2]
[349841120,1737456692356,-3000.0,0.00021876,2]
[349841121,1737456692366,-200.0,0.00021876,2]
[349841122,1737456692375,-15116.54476514,0.00021876,2]
[349841123,1737456692386,-16755.1511933,0.00021878,2]
[349841124,1737456692395,-5412.40788979,0.00021878,2]
[349841125,1737456692405,-127921.66884297,0.00021879,2]
[349841126,1737456692413,-1082.48157796,0.00021879,2]
[349841127,1737456692423,-240.31966049,0.00021879,2]
[349841128,1737456692432,-200.0,0.00021879,2]
[349841129,1737456692442,-2699.99662852,0.00021879,2]
[349841130,1737456692451,-4576.41827476,0.00021881,2]
[349841131,1737456692460,-2491.79134546,0.00021882,2]
[349841132,1737456692469,-2699.99662852,0.00021882,2]
[349841133,1737456692478,-5552.30311479,0.00021882,2]
[349841134,1737456692487,-2324.22729221,0.00021882,2]
[349841135,1737456692497,-200.0,0.00021885,2]
[349841136,1737456692506,-4355.21673153,0.00021886,2]
[349841137,1737456692515,-11757.20080591,0.00021886,2]
[349841138,1737456692524,-5552.30311479,0.00021886,2]
[349841139,1737456692533,-290.18353317,0.00021887,2]
[349841140,1737456692542,-9152.83654951,0.00021888,2]
[349841141,1737456692551,-2957.40204615,0.00021888,2]
[349841142,1737456692560,-22779.24709211,0.00021888,2]
[349841143,1737456692570,-442.94854789,0.00021889,2]
[349841144,1737456692580,-16755.1511933,0.00021889,2]
[349841145,1737456692588,-200.0,0.00021889,2]
[349841146,1737456692598,-4122.99355992,0.00021889,2]
[349841147,1737456692607,-98580.48007377,0.0002189,2]
[349841148,1737456692616,-2333.33333333,0.0002189,2]
[349841149,1737456692625,-166.66666667,0.0002189,2]
[349841150,1737456692636,-500.0,0.0002189,2]
[349841151,1737456692645,-5552.30311479,0.00021891,2]
[349841152,1737456692654,-200.0,0.00021892,2]
[349841153,1737456692664,-11152.019923,0.00021892,2]
[349841154,1737456692673,-6997.34460471,0.00021892,2]
[349841155,1737456692682,-2578.87116533,0.00021892,2]
[349841156,1737456692691,-200.0,0.00021892,2]
[349841157,1737456692699,-1486.22180387,0.00021893,2]
[349841158,1737456692709,-8940.36013752,0.00021893,2]
[349841159,1737456692718,-1159.66791995,0.00021893,2]
[349841160,1737456692726,-200.0,0.00021893,2]
[349841161,1737456692736,-915.28365495,0.00021894,2]
[349841162,1737456692745,-200.0,0.00021894,2]
[349841163,1737456692755,-58990.02320017,0.00021894,2]
[349841164,1737456692764,-200.0,0.00021894,2]
[349841165,1737456692774,-915.28365496,0.00021894,2]
[349841166,1737456692783,-393.30728336,0.00021895,2]
[349841167,1737456692792,-3820.81913477,0.00021896,2]
[349841168,1737456692801,-1428.22876759,0.00021896,2]
[349841169,1737456692810,-2290.96809577,0.00021897,2]
[349841170,1737456692819,-11757.20080591,0.00021897,2]
[349841171,1737456692832,-150.0,0.00021897,2]
[349841172,1737456692841,-2957.40204615,0.00021898,2]
[349841173,1737456692851,-20827.25077048,0.00021898,2]
[349841174,1737456692860,-4355.21673153,0.00021898,2]
[349841175,1737456692870,-387.90346576,0.00021898,2]
[349841176,1737456692879,-1082.48157796,0.00021899,2]
[349841177,1737456692890,-37718.25295147,0.00021899,2]
[349841178,1737456692899,-720.66,0.00021899,2]
[349841179,1737456692909,-200.0,0.00021899,2]
[349841180,1737456692918,-1159.66791995,0.00021899,2]
[349841181,1737456692927,-1082.48157796,0.00021899,2]
[349841182,1737456692936,-290.18353317,0.00021899,2]
[349841183,1737456692945,-231.93358399,0.000219,2]
[349841184,1737456692955,-2000.0,0.000219,2]
[349841185,1737456692964,-2000.0,0.000219,2]
[349841186,1737456692973,-2000.0,0.000219,2]
[349841187,1737456692983,-2000.0,0.000219,2]
[349841188,1737456692992,-2000.0,0.000219,2]
[349841189,1737456693002,-2000.0,0.000219,2]
[349841190,1737456693011,-2000.0,0.000219,2]
[349841191,1737456693021,-2000.0,0.000219,2]
[349841192,1737456693031,-2000.0,0.000219,2]
[349841193,1737456693041,-2000.0,0.000219,2]
[349841194,1737456693052,-2000.0,0.000219,2]
[349841195,1737456693062,-2000.0,0.000219,2]
[349841196,1737456693072,-8500.0,0.000219,2]
[349841197,1737456693082,-5800.0,0.000219,2]
[349841198,1737456693091,-168.27944597,0.000219,2]
[349841199,1737456693101,-5049.34272362,0.000219,2]
[349841200,1737456693111,-151.0,0.000219,2]
[349841201,1737456693121,-151.0,0.000219,2]
[349841202,1737456693130,-154.990602,0.000219,2]
[349841203,1737456693143,-151.0,0.000219,2]
[349841204,1737456693152,-172.61671403,0.000219,2]
[349841205,1737456693162,-151.0,0.000219,2]
[349841206,1737456693172,-152.598196,0.000219,2]
[349841207,1737456693183,-1107.581745,0.000219,2]
[349841208,1737456693192,-1107.581745,0.000219,2]
[349841209,1737456693202,-152.2946019,0.000219,2]
[349841210,1737456693211,-152.29460187,0.000219,2]
[349841211,1737456693221,-152.29460187,0.000219,2]
[349841212,1737456693231,-152.29460187,0.000219,2]
[349841213,1737456693241,-152.29460187,0.000219,2]
[349841214,1737456693251,-152.29460187,0.000219,2]
[349841215,1737456693261,-152.29460187,0.000219,2]
[349841216,1737456693271,-152.29460187,0.000219,2]
[349841217,1737456693281,-152.29460187,0.000219,2]
[349841218,1737456693291,-152.29460187,0.000219,2]
[349841219,1737456693301,-152.29460187,0.000219,2]
[349841220,1737456693310,-1000.0,0.000219,2]
[349841221,1737456693320,-152.29460187,0.000219,2]
[349841222,1737456693329,-152.29460187,0.000219,2]
[349841223,1737456693339,-219.3239677,0.000219,3]
[349841224,1737456693349,-4367.6125662,0.000219,2]
[349841225,1737456693360,-288.88686,0.00021917,2]
[349841226,1737456693370,-500.0,0.00021917,2]
[349841227,1737456693379,-445.572942,0.00021917,2]
[349841228,1737456693389,-500.0,0.00021917,2]
[349841229,1737456693398,-500.0,0.00021917,2]
[349841230,1737456693408,-500.0,0.00021917,2]
[349841231,1737456693417,-1729.56,0.00021917,2]
[349841232,1737456693427,-500.0,0.00021917,2]
[349841233,1737456693436,-500.0,0.00021917,2]
[349841234,1737456693445,-500.0,0.00021917,2]
[349841235,1737456693455,-500.0,0.00021917,2]
[349841236,1737456693464,-500.0,0.00021917,2]
[349841237,1737456693473,-500.0,0.00021917,2]
[349841238,1737456693482,-500.0,0.00021917,2]
[349841239,1737456693491,-500.0,0.00021917,2]
[349841240,1737456693500,-523.35,0.00021917,2]
[349841241,1737456693509,-523.35,0.00021917,2]
[349841242,1737456693518,-523.35,0.00021917,2]
[349841243,1737456693528,-523.35,0.00021917,2]
[349841244,1737456693537,-523.35,0.00021917,2]
[349841245,1737456693546,-523.35,0.00021917,2]
[349841246,1737456693555,-523.35,0.00021917,2]
[349841247,1737456693565,-523.35,0.00021917,2]
[349841248,1737456693573,-523.35,0.00021917,2]
[349841249,1737456693583,-523.35,0.00021917,2]
[349841250,1737456693592,-523.35,0.00021917,2]
[349841251,1737456693601,-500.0,0.00021917,2]
[349841252,1737456693611,-500.0,0.00021917,2]
[349841253,1737456693620,-197.64440499,0.00021917,2]
[349841254,1737456693629,-500.0,0.00021917,2]
[349841255,1737456693640,-500.0,0.00021917,2]
[349841256,1737456693649,-165.876209,0.00021917,2]
[349841257,1737456693658,-529.46690991,0.00021917,2]
[349841258,1737456693775,-500.0,0.00021917,2]
[349841259,1737456693785,-500.0,0.00021917,2]
[349841260,1737456693794,-683.71,0.00021917,2]
[349841261,1737456693804,-500.0,0.00021917,2]
[349841262,1737456693813,-500.0,0.00021917,2]
[349841263,1737456693824,-544.4,0.00021917,2]
[349841264,1737456693834,-500.0,0.00021917,2]
[349841265,1737456693843,-806.69,0.00021917,2]
[349841266,1737456693853,-500.0,0.00021917,2]
[349841267,1737456693864,-1002.52,0.00021917,2]
[349841268,1737456693874,-957.69,0.00021917,2]
[349841269,1737456693886,-500.0,0.00021917,2]
[349841270,1737456693896,-500.0,0.00021917,2]
[349841271,1737456693905,-500.0,0.00021917,2]
[349841272,1737456693915,-500.0,0.00021917,2]
[349841273,1737456693925,-500.0,0.00021917,2]
[349841274,1737456693934,-288.83471578,0.00021917,2]
[349841275,1737456693943,-500.0,0.00021917,2]
[349841276,1737456693953,-500.0,0.00021917,2]
[349841277,1737456693963,-500.0,0.00021917,2]
[349841278,1737456693973,-500.0,0.00021917,2]
[349841279,1737456693983,-500.0,0.00021917,2]
[349841280,1737456693993,-500.0,0.00021917,2]
[349841281,1737456694003,-500.0,0.00021917,2]
[349841282,1737456694013,-500.0,0.00021917,2]
[349841283,1737456694022,-186.98900626,0.00021917,2]
[349841284,1737456694032,-519.02,0.00021917,2]
[349841285,1737456694041,-500.0,0.00021917,2]
[349841286,1737456694051,-642.78,0.00021917,2]
[349841287,1737456694061,-500.0,0.00021917,2]
[349841288,1737456694070,-174.17,0.00021917,2]
[349841289,1737456694081,-500.0,0.00021917,2]
[349841290,1737456694090,-500.0,0.00021917,2]
[349841291,1737456694100,-500.0,0.00021917,2]
[349841292,1737456694110,-500.0,0.00021917,2]
[349841293,1737456694122,-500.0,0.00021917,2]
[349841294,1737456694132,-521.49577962,0.00021917,2]
[349841295,1737456694143,-500.0,0.00021917,2]
[349841296,1737456694153,-500.0,0.00021917,2]
[349841297,1737456694163,-500.0,0.00021917,2]
[349841298,1737456694173,-151.0,0.00021917,2]
[349841299,1737456694182,-562.12,0.00021917,2]
[349841300,1737456694192,-500.0,0.00021917,2]
[349841301,1737456694202,-500.0,0.00021917,2]
[349841302,1737456694212,-500.0,0.00021917,2]
[349841303,1737456694222,-500.0,0.00021917,2]
[349841304,1737456694232,-500.0,0.00021917,2]
[349841305,1737456694241,-518.63,0.00021917,2]
[349841306,1737456694250,-500.0,0.00021917,2]
[349841307,1737456694261,-593.19,0.00021917,2]
[349841308,1737456694271,-500.0,0.00021917,2]
[349841309,1737456694280,-153.671291,0.00021917,2]
[349841310,1737456694290,-500.0,0.00021917,2]
[349841311,1737456694300,-500.0,0.00021917,2]
[349841312,1737456694309,-158.118766,0.00021917,2]
[349841313,1737456694318,-268.77259026,0.00021917,2]
[349841314,1737456694328,-158.118766,0.00021917,2]
[349841315,1737456694337,-500.0,0.00021917,2]
[349841316,1737456694346,-511.0,0.00021917,2]
[349841317,1737456694356,-561.9,0.00021917,2]
[349841318,1737456694367,-500.0,0.00021917,2]
[349841319,1737456694377,-500.0,0.00021917,2]
[349841320,1737456694388,-500.0,0.00021917,2]
[349841321,1737456694398,-500.0,0.00021917,2]
[349841322,1737456694408,-500.0,0.00021917,2]
[349841323,1737456694419,-151.0,0.00021917,2]
[349841324,1737456694428,-500.0,0.00021917,2]
[349841325,1737456694439,-500.0,0.00021917,2]
[349841326,1737456694449,-500.0,0.00021917,2]
[349841327,1737456694458,-500.0,0.00021917,2]
[349841328,1737456694467,-500.0,0.00021917,2]
[349841329,1737456694476,-500.0,0.00021917,2]
[349841330,1737456694486,-538.78,0.00021917,2]
[349841331,1737456694495,-500.0,0.00021917,2]
[349841332,1737456694504,-500.0,0.00021917,2]
[349841333,1737456694513,-500.0,0.00021917,2]
[349841334,1737456694523,-500.0,0.00021917,2]
[349841335,1737456694532,-500.0,0.00021917,2]
[349841336,1737456694542,-741.87,0.00021917,2]
[349841337,1737456694551,-1133.48,0.00021917,2]
[349841338,1737456694560,-500.0,0.00021917,2]
[349841339,1737456694570,-152.249618,0.00021917,2]
[349841340,1737456694579,-500.0,0.00021917,2]
[349841341,1737456694591,-154.328043,0.00021917,2]
[349841342,1737456694609,-1828.47,0.00021917,2]
[349841343,1737456694624,-152.249618,0.00021917,2]
[349841344,1737456694643,-500.0,0.00021917,2]
[349841345,1737456694661,-583.0326514,0.00021917,2]
[349841346,1737456694677,-1061.915887,0.00021917,2]
[349841347,1737456694695,-1061.915887,0.00021917,2]
[349841348,1737456694715,-500.0,0.00021917,2]
[349841349,1737456694735,-151.0,0.00021917,2]
[349841350,1737456694753,-500.0,0.00021917,2]
[349841351,1737456694770,-500.0,0.00021917,2]
[349841352,1737456694788,-836.32,0.00021917,2]
[349841353,1737456694802,-807.5,0.00021917,2]
[349841354,1737456694823,-1071.85,0.00021917,2]
[349841355,1737456694838,-151.0,0.00021917,2]
[349841356,1737456694857,-151.0,0.00021917,2]
[349841357,1737456694872,-631.94,0.00021917,2]
[349841358,1737456694890,-151.0,0.00021917,2]
[349841359,1737456694907,-1992.56,0.00021917,2]
[349841360,1737456694922,-745.09,0.00021917,2]
[349841361,1737456694938,-161.031075,0.00021917,2]
[349841362,1737456694953,-502.36,0.00021917,2]
[349841363,1737456694967,-502.36,0.00021917,2]
[349841364,1737456694982,-502.36,0.00021917,2]
[349841365,1737456694997,-502.36,0.00021917,2]
[349841366,1737456695012,-502.36,0.00021917,2]
[349841367,1737456695027,-502.36,0.00021917,2]
[349841368,1737456695043,-502.36,0.00021917,2]
[349841369,1737456695059,-502.36,0.00021917,2]
[349841370,1737456695074,-502.36,0.00021917,2]
[349841371,1737456695089,-502.36,0.00021917,2]